fUST/lending_fUST_20250707
["ID","MTS","AMOUNT","RATE_DAILY","PERIOD"]
[370055581,1751868647580,-460.0,0.00017569,2]
[370055582,1751868647591,-460.0,0.00017569,2]
[370055583,1751868647600,-592.92,0.00017569,2]
[370055584,1751868647610,-460.0,0.00017569,2]
[370055585,1751868647619,-460.0,0.00017569,2]
[370055586,1751868647628,-361.31326864,0.00017569,2]
[370055587,1751868647637,-460.0,0.00017569,2]
[370055588,1751868647647,-460.0,0.0001757,2]
[370055589,1751868647658,-460.0,0.0001757,2]
[370055590,1751868647668,-460.0,0.0001757,2]
[370055591,1751868647678,-460.0,0.0001757,2]
[370055592,1751868647688,-460.0,0.0001757,2]
[370055593,1751868647699,-460.0,0.0001757,2]
[370055594,1751868647708,-460.0,0.0001757,2]
[370055595,1751868647720,-460.0,0.0001757,2]
[370055596,1751868647730,-460.0,0.0001757,2]
[370055597,1751868647739,-460.0,0.0001757,2]
[370055598,1751868647748,-460.0,0.0001757,2]
[370055599,1751868647758,-460.0,0.0001757,2]
[370055600,1751868647769,-460.0,0.0001757,2]
[370055601,1751868647778,-460.0,0.0001757,2]
[370055602,1751868647788,-460.0,0.0001757,2]
[370055603,1751868647797,-460.0,0.0001757,2]
[370055604,1751868647806,-573.12410312,0.00017571,2]
[370055605,1751868647815,-585.61162542,0.00017571,2]
[370055606,1751868647824,-460.0,0.00017571,2]
[370055607,1751868647834,-460.0,0.00017571,2]
[370055608,1751868647843,-275.06762307,0.00017601,2]
[370055609,1751868647853,-202.35903388,0.00017601,2]
[370055610,1751868647864,-500.0,0.00017602,2]
[370055611,1751868647874,-500.0,0.00017602,2]
[370055612,1751868647884,-539.57237092,0.00017602,2]
[370055613,1751868647893,-500.0,0.00017602,2]
[370055614,1751868647902,-1001.26517529,0.00017821,2]
[370055615,1751868647912,-1003.55238923,0.00017821,2]
[370055616,1751868647922,-460.0,0.0001784,2]
[370055617,1751868648051,-460.0,0.0001784,2]
[370055618,1751868648063,-381.58,0.0001784,2]
[370055619,1751868648073,-460.0,0.0001784,2]
[370055620,1751868648083,-460.0,0.0001784,2]
[370055621,1751868648093,-651.31,0.0001784,2]
[370055622,1751868648102,-464.68413997,0.00017841,2]
[370055623,1751868648112,-349.15093897,0.00017841,2]
[370055624,1751868648122,-550.16,0.00017841,2]
[370055625,1751868648132,-460.0,0.00017841,2]
[370055626,1751868648142,-460.0,0.00017841,2]
[370055627,1751868648151,-460.0,0.00017841,2]
[370055628,1751868648160,-460.0,0.00017841,2]
[370055629,1751868648170,-460.0,0.00017841,2]
[370055630,1751868648179,-460.0,0.00017841,2]
[370055631,1751868648189,-460.0,0.00017841,2]
[370055632,1751868648200,-460.0,0.00017841,2]
[370055633,1751868648210,-460.0,0.00017841,2]
[370055634,1751868648219,-460.0,0.00017841,2]
[370055635,1751868648229,-514.0,0.00017841,2]
[370055636,1751868648239,-473.96699947,0.00017841,2]
[370055637,1751868648249,-460.0,0.00017841,2]
[370055638,1751868648258,-1103.47,0.00017841,2]
[370055639,1751868648267,-460.0,0.00017841,2]
[370055640,1751868648277,-460.0,0.00017841,2]
[370055641,1751868648287,-460.0,0.00017842,2]
[370055642,1751868648296,-460.0,0.00017842,2]
[370055643,1751868648305,-460.0,0.00017842,2]
[370055644,1751868648315,-460.0,0.00017842,2]
[370055645,1751868648324,-460.0,0.00017842,2]
[370055646,1751868648333,-582.72266047,0.00017842,2]
[370055647,1751868648343,-460.0,0.00017842,2]
[370055648,1751868648352,-460.0,0.00017842,2]
[370055649,1751868648361,-460.0,0.00017842,2]
[370055650,1751868648371,-460.0,0.00017842,2]
[370055651,1751868648381,-460.0,0.00017842,2]
[370055652,1751868648391,-460.0,0.00017842,2]
[370055653,1751868648400,-473.74721333,0.00017842,2]
[370055654,1751868648409,-460.0,0.00017842,2]
[370055655,1751868648419,-460.0,0.00017842,2]
[370055656,1751868648428,-460.0,0.00017842,2]
[370055657,1751868648438,-460.0,0.00017842,2]
[370055658,1751868648447,-460.0,0.00017843,2]
[370055659,1751868648457,-463.16776416,0.00017843,2]
[370055660,1751868648467,-460.0,0.00017843,2]
[370055661,1751868648476,-446.99,0.00017843,2]
[370055662,1751868648485,-463.56237895,0.00017843,2]
[370055663,1751868648494,-469.65868028,0.00017843,2]
[370055664,1751868648503,-504.49705226,0.00017843,2]
[370055665,1751868648512,-460.0,0.00017843,2]
[370055666,1751868648522,-460.0,0.00017843,2]
[370055667,1751868648531,-460.0,0.00017843,2]
[370055668,1751868648541,-460.0,0.00017843,2]
[370055669,1751868648551,-460.0,0.00017843,2]
[370055670,1751868648560,-460.0,0.00017843,2]
[370055671,1751868648570,-466.9320337,0.00017843,2]
[370055672,1751868648579,-467.26285108,0.00017843,2]
[370055673,1751868648589,-460.0,0.00017844,2]
[370055674,1751868648598,-450.8,0.00017844,2]
[370055675,1751868648607,-519.67094847,0.00017844,2]
[370055676,1751868648617,-460.0,0.00017844,2]
[370055677,1751868648627,-460.0,0.00017844,2]
[370055678,1751868648636,-460.0,0.00017844,2]
[370055679,1751868648645,-460.0,0.00017844,2]
[370055680,1751868648655,-1158.81,0.00017844,2]
[370055681,1751868648664,-460.0,0.00017844,2]
[370055682,1751868648673,-460.0,0.00017844,2]
[370055683,1751868648683,-460.0,0.00017844,2]
[370055684,1751868648692,-487.02382262,0.00017844,2]
[370055685,1751868648702,-460.0,0.00017844,2]
[370055686,1751868648711,-460.0,0.00017844,2]
[370055687,1751868648721,-460.0,0.00017844,2]
[370055688,1751868648730,-460.0,0.00017844,2]
[370055689,1751868648740,-460.0,0.00017844,2]
[370055690,1751868648749,-460.9688849,0.00017844,2]
[370055691,1751868648758,-460.0,0.00017844,2]
[370055692,1751868648768,-460.0,0.00017844,2]
[370055693,1751868648777,-460.0,0.00017844,2]
[370055694,1751868648787,-606.76,0.00017845,2]
[370055695,1751868648797,-500.0,0.00017862,2]
[370055696,1751868648806,-500.0,0.00017862,2]
[370055697,1751868648816,-501.3929679,0.00017862,2]
[370055698,1751868648826,-502.65077368,0.00017862,2]
[370055699,1751868648835,-501.58885187,0.00017862,2]
[370055700,1751868648845,-500.0,0.00017862,2]
[370055701,1751868648854,-500.0,0.00017862,2]
[370055702,1751868648864,-500.0,0.00017862,2]
[370055703,1751868648873,-500.0,0.00017862,2]
[370055704,1751868648882,-500.0,0.00017862,2]
[370055705,1751868648892,-500.0,0.00017862,2]
[370055706,1751868648901,-460.0,0.00018114,2]
[370055707,1751868648910,-460.0,0.00018114,2]
[370055708,1751868648920,-460.0,0.00018114,2]
[370055709,1751868648929,-460.0,0.00018114,2]
[370055710,1751868648939,-651.31,0.00018114,2]
[370055711,1751868648948,-460.0,0.00018115,2]
[370055712,1751868648957,-460.0,0.00018115,2]
[370055713,1751868648967,-460.0,0.00018115,2]
[370055714,1751868648976,-460.0,0.00018115,2]
[370055715,1751868648986,-460.0,0.00018115,2]
[370055716,1751868648996,-268.92638648,0.00018115,2]
[370055717,1751868649005,-460.0,0.00018115,2]
[370055718,1751868649015,-460.0,0.00018115,2]
[370055719,1751868649025,-460.0,0.00018115,2]
[370055720,1751868649039,-1103.47,0.00018115,2]
[370055721,1751868649050,-460.0,0.00018115,2]
[370055722,1751868649059,-460.0,0.00018116,2]
[370055723,1751868649069,-460.0,0.00018116,2]
[370055724,1751868649079,-460.0,0.00018116,2]
[370055725,1751868649088,-460.0,0.00018116,2]
[370055726,1751868649098,-460.0,0.00018116,2]
[370055727,1751868649107,-547.06,0.00018116,2]
[370055728,1751868649118,-390.65,0.00018116,2]
[370055729,1751868649130,-460.0,0.00018118,2]
[370055730,1751868649139,-460.0,0.00018118,2]
[370055731,1751868649149,-461.73745847,0.00018118,2]
[370055732,1751868649158,-460.0,0.00018118,2]
[370055733,1751868649168,-460.0,0.00018118,2]
[370055734,1751868649177,-538.15645825,0.00018118,2]
[370055735,1751868649187,-1002.61451188,0.00018118,2]
[370055736,1751868649196,-460.0,0.00018118,2]
[370055737,1751868649205,-1158.81,0.00018118,2]
[370055738,1751868649214,-460.0,0.00018118,2]
[370055739,1751868649224,-460.0,0.00018118,2]
[370055740,1751868649233,-460.0,0.00018118,2]
[370055741,1751868649243,-460.0,0.00018118,2]
[370055742,1751868649253,-460.0,0.00018118,2]
[370055743,1751868649262,-557.16746967,0.00018118,2]
[370055744,1751868649271,-249.86262577,0.00018118,2]
[370055745,1751868649281,-460.0,0.00018118,2]
[370055746,1751868649290,-460.0,0.00018118,2]
[370055747,1751868649300,-1005.03255121,0.0001815,2]
[370055748,1751868649309,-809.36995602,0.0001815,2]
[370055749,1751868649318,-1000.0,0.0001815,2]
[370055750,1751868649327,-460.0,0.00018388,2]
[370055751,1751868649336,-460.0,0.00018388,2]
[370055752,1751868649346,-460.0,0.00018388,2]
[370055753,1751868649355,-460.0,0.00018388,2]
[370055754,1751868649364,-651.31,0.00018388,2]
[370055755,1751868649373,-460.0,0.00018389,2]
[370055756,1751868649382,-482.80332081,0.00018389,2]
[370055757,1751868649391,-460.0,0.00018389,2]
[370055758,1751868649400,-460.0,0.00018389,2]
[370055759,1751868649410,-460.0,0.00018389,2]
[370055760,1751868649420,-460.0,0.00018389,2]
[370055761,1751868649429,-1103.47,0.00018389,2]
[370055762,1751868649438,-460.0,0.00018389,2]
[370055763,1751868649448,-460.0,0.0001839,2]
[370055764,1751868649457,-481.85637382,0.0001839,2]
[370055765,1751868649466,-460.0,0.00018392,2]
[370055766,1751868649475,-460.0,0.00018392,2]
[370055767,1751868649485,-463.94652238,0.00018392,2]
[370055768,1751868649494,-460.0,0.00018392,2]
[370055769,1751868649503,-1158.81,0.00018392,2]
[370055770,1751868649513,-460.0,0.00018392,2]
[370055771,1751868649522,-460.0,0.00018392,2]
[370055772,1751868649531,-460.0,0.00018392,2]
[370055773,1751868649540,-460.0,0.00018392,2]
[370055774,1751868649550,-460.0,0.00018392,2]
[370055775,1751868649559,-460.0,0.00018392,2]
[370055776,1751868649568,-518.45859757,0.0001841,2]
[370055777,1751868649578,-1000.0,0.0001841,2]
[370055778,1751868649588,-492.30793484,0.0001841,2]
[370055779,1751868649597,-500.70320873,0.0001841,2]
[370055780,1751868649606,-500.0,0.0001841,2]
[370055781,1751868649615,-500.0,0.0001841,2]
[370055782,1751868649625,-222.300344,0.00018425,2]
[370055783,1751868649634,-222.300344,0.00018509,2]
[370055784,1751868649643,-592.0,0.00018585,2]
[370055785,1751868649653,-420.0,0.00018587,2]
[370055786,1751868649663,-501.52102047,0.00018589,2]
[370055787,1751868649672,-222.300344,0.00018594,2]
[370055788,1751868649681,-460.0,0.00018662,2]
[370055789,1751868649691,-460.0,0.00018662,2]
[370055790,1751868649700,-460.0,0.00018662,2]
[370055791,1751868649710,-460.0,0.00018662,2]
[370055792,1751868649719,-651.31,0.00018662,2]
[370055793,1751868649728,-448.76,0.00018663,2]
[370055794,1751868649738,-460.0,0.00018663,2]
[370055795,1751868649747,-460.0,0.00018663,2]
[370055796,1751868649757,-460.0,0.00018663,2]
[370055797,1751868649767,-1103.47,0.00018663,2]
[370055798,1751868649776,-460.0,0.00018664,2]
[370055799,1751868649786,-460.0,0.00018666,2]
[370055800,1751868649795,-460.0,0.00018666,2]
[370055801,1751868649805,-460.0,0.00018666,2]
[370055802,1751868649815,-1158.81,0.00018666,2]
[370055803,1751868649825,-460.0,0.00018666,2]
[370055804,1751868649835,-331.36346171,0.00018666,2]
[370055805,1751868649844,-460.0,0.00018666,2]
[370055806,1751868649853,-460.0,0.00018666,2]
[370055807,1751868649862,-460.0,0.00018666,2]
[370055808,1751868649872,-460.0,0.00018666,2]
[370055809,1751868649883,-222.300344,0.00018678,2]
[370055810,1751868649895,-1500.0,0.00018698,2]
[370055811,1751868649904,-806.76760504,0.00018704,2]
[370055812,1751868649914,-866.74568265,0.0001874,2]
[370055813,1751868649923,-222.300344,0.00018762,2]
[370055814,1751868649932,-222.300344,0.00018847,2]
[370055815,1751868649942,-500.0,0.00018884,2]
[370055816,1751868649954,-501.47914524,0.00018884,2]
[370055817,1751868649964,-500.70507689,0.00018884,2]
[370055818,1751868649974,-500.0,0.00018884,2]
[370055819,1751868649983,-501.29562821,0.00018884,2]
[370055820,1751868649993,-1576.1386736,0.000189,2]
[370055821,1751868650002,-150.0,0.000189,2]
[370055822,1751868650012,-222.300344,0.00018931,2]
[370055823,1751868650021,-460.0,0.00018936,2]
[370055824,1751868650035,-460.0,0.00018936,2]
[370055825,1751868650044,-460.0,0.00018936,2]
[370055826,1751868650054,-460.0,0.00018936,2]
[370055827,1751868650064,-651.31,0.00018936,2]
[370055828,1751868650075,-460.0,0.00018937,2]
[370055829,1751868650084,-460.0,0.00018937,2]
[370055830,1751868650093,-460.0,0.00018937,2]
[370055831,1751868650103,-1103.47,0.00018937,2]
[370055832,1751868650114,-493.65,0.00018938,2]
[370055833,1751868650125,-460.0,0.0001894,2]
[370055834,1751868650134,-460.0,0.0001894,2]
[370055835,1751868650144,-222.04,0.0001894,2]
[370055836,1751868650154,-1158.81,0.0001894,2]
[370055837,1751868650163,-254.61881733,0.0001894,2]
[370055838,1751868650173,-460.0,0.0001894,2]
[370055839,1751868650182,-450.43,0.0001894,2]
[370055840,1751868650191,-460.0,0.0001894,2]
[370055841,1751868650201,-460.0,0.0001894,2]
[370055842,1751868650211,-172.046631,0.00018958,2]
[370055843,1751868650220,-222.300344,0.00019015,2]
[370055844,1751868650231,-222.300344,0.000191,2]
[370055845,1751868650241,-1576.13867347,0.00019141,2]
[370055846,1751868650254,-254.00738904,0.00019178,2]
[370055847,1751868650264,-383.648746,0.00019178,2]
[370055848,1751868650274,-666.0,0.00019178,2]
[370055849,1751868650397,-222.300344,0.00019184,2]
[370055850,1751868650406,-460.0,0.0001921,2]
[370055851,1751868650416,-460.0,0.0001921,2]
[370055852,1751868650426,-460.0,0.0001921,2]
[370055853,1751868650436,-460.0,0.0001921,2]
[370055854,1751868650446,-651.31,0.0001921,2]
[370055855,1751868650456,-460.0,0.00019211,2]
[370055856,1751868650465,-460.0,0.00019211,2]
[370055857,1751868650475,-460.0,0.00019211,2]
[370055858,1751868650484,-1103.47,0.00019211,2]
[370055859,1751868650494,-1158.81,0.00019214,2]
[370055860,1751868650503,-460.0,0.00019214,2]
[370055861,1751868650512,-460.0,0.00019214,2]
[370055862,1751868650521,-460.0,0.00019214,2]
[370055863,1751868650531,-222.300344,0.00019268,2]
[370055864,1751868650540,-222.300344,0.00019353,2]
[370055865,1751868650549,-1576.13867347,0.00019383,2]
[370055866,1751868650560,-500.0,0.00019432,2]
[370055867,1751868650569,-1000.58619205,0.00019432,2]
[370055868,1751868650581,-222.300344,0.00019437,2]
[370055869,1751868650591,-460.0,0.00019484,2]
[370055870,1751868650601,-197.41691578,0.00019484,2]
[370055871,1751868650610,-460.0,0.00019484,2]
[370055872,1751868650619,-460.0,0.00019484,2]
[370055873,1751868650628,-651.31,0.00019484,2]
[370055874,1751868650638,-460.0,0.00019485,2]
[370055875,1751868650647,-460.0,0.00019485,2]
[370055876,1751868650657,-531.3,0.00019485,2]
[370055877,1751868650666,-1103.47,0.00019485,2]
[370055878,1751868650676,-1158.81,0.00019488,2]
[370055879,1751868650685,-460.0,0.00019488,2]
[370055880,1751868650695,-460.0,0.00019488,2]
[370055881,1751868650704,-460.0,0.00019488,2]
[370055882,1751868650713,-222.300344,0.00019521,2]
[370055883,1751868650722,-222.300344,0.00019606,2]
[370055884,1751868650732,-1576.13867347,0.00019624,2]
[370055885,1751868650741,-222.300344,0.0001969,2]
[370055886,1751868650750,-460.0,0.00019758,2]
[370055887,1751868650760,-197.81494359,0.00019758,2]
[370055888,1751868650769,-460.0,0.00019758,2]
[370055889,1751868650778,-651.31,0.00019758,2]
[370055890,1751868650788,-460.0,0.00019759,2]
[370055891,1751868650797,-460.0,0.00019759,2]
[370055892,1751868650806,-1103.47,0.00019759,2]
[370055893,1751868650815,-1158.81,0.00019762,2]
[370055894,1751868650825,-460.0,0.00019762,2]
[370055895,1751868650834,-460.0,0.00019762,2]
[370055896,1751868650844,-522.45,0.00019762,2]
[370055897,1751868650853,-222.300344,0.00019774,2]
[370055898,1751868650863,-160.0,0.00019791,2]
[370055899,1751868650872,-160.0,0.00019791,2]
[370055900,1751868650881,-524.98484073,0.00019791,2]
[370055901,1751868650890,-160.0,0.00019791,2]
[370055902,1751868650901,-837.79946008,0.00019791,2]
[370055903,1751868650915,-160.0,0.00019791,2]
[370055904,1751868650924,-230.48668418,0.00019791,2]
[370055905,1751868650933,-160.0,0.00019791,2]
[370055906,1751868650943,-160.0,0.00019791,2]
[370055907,1751868650952,-215.21338352,0.00019791,2]
[370055908,1751868650961,-160.0,0.00019791,2]
[370055909,1751868650971,-160.0,0.00019791,2]
[370055910,1751868650980,-848.27993403,0.00019791,2]
[370055911,1751868650990,-214.06929976,0.00019791,2]
[370055912,1751868650999,-12584.46609586,0.00019806,2]
[370055913,1751868651009,-222.300344,0.00019859,2]
[370055914,1751868651018,-1576.13867347,0.00019866,2]
[370055915,1751868651028,-222.300344,0.00019943,2]
[370055916,1751868651040,-163.58810041,0.0001999,2]
[370055917,1751868651050,-300.75601727,0.0002,2]
[370055918,1751868651059,-300.0,0.0002,2]
[370055919,1751868651068,-370000.0,0.00020007,2]
[370055920,1751868651078,-222.300344,0.00020027,2]
[370055921,1751868651088,-460.0,0.00020032,2]
[370055922,1751868651097,-460.0,0.00020032,2]
[370055923,1751868651107,-651.31,0.00020032,2]
[370055924,1751868651118,-460.0,0.00020033,2]
[370055925,1751868651128,-460.0,0.00020033,2]
[370055926,1751868651137,-1103.47,0.00020033,2]
[370055927,1751868651147,-1158.81,0.00020036,2]
[370055928,1751868651157,-460.0,0.00020036,2]
[370055929,1751868651166,-460.0,0.00020036,2]
[370055930,1751868651175,-500.0,0.00020073,2]
[370055931,1751868651185,-1576.13867347,0.00020107,2]
[370055932,1751868651194,-171.791858,0.00020187,2]
[370055933,1751868651205,-806.76760504,0.00020211,2]
[370055934,1751868651214,-587.0,0.00020301,2]
[370055935,1751868651224,-460.0,0.00020306,2]
[370055936,1751868651233,-460.0,0.00020306,2]
[370055937,1751868651243,-651.31,0.00020306,2]
[370055938,1751868651252,-460.0,0.00020307,2]
[370055939,1751868651261,-460.0,0.00020307,2]
[370055940,1751868651270,-1103.47,0.00020307,2]
[370055941,1751868651280,-1158.81,0.0002031,2]
[370055942,1751868651289,-460.0,0.0002031,2]
[370055943,1751868651298,-460.0,0.0002031,2]
[370055944,1751868651309,-1576.13867347,0.00020348,3]
[370055945,1751868651318,-151.0,0.000204,3]
[370055946,1751868651328,-412.21994519,0.00020497,2]
[370055947,1751868651339,-507.41,0.0002058,2]
[370055948,1751868651349,-460.0,0.0002058,2]
[370055949,1751868651358,-651.31,0.0002058,2]
[370055950,1751868651367,-460.0,0.00020581,2]
[370055951,1751868651376,-460.0,0.00020581,2]
[370055952,1751868651387,-1103.47,0.00020581,2]
[370055953,1751868651396,-3529.12,0.00020582,2]
[370055954,1751868651406,-1158.81,0.00020584,2]
[370055955,1751868651416,-460.0,0.00020584,2]
[370055956,1751868651426,-460.0,0.00020584,2]
[370055957,1751868651435,-1576.13867347,0.0002059,3]
[370055958,1751868651444,-1299.83,0.000206,2]
[370055959,1751868651453,-501.71811265,0.00020681,2]
[370055960,1751868651462,-4000.0,0.00020726,2]
[370055961,1751868651472,-502.82216116,0.00020815,2]
[370055962,1751868651482,-160.21940151,0.00020815,2]
[370055963,1751868651491,-500.0,0.00020815,2]
[370055964,1751868651500,-600.0,0.00020815,2]
[370055965,1751868651510,-500.62017214,0.00020815,2]
[370055966,1751868651519,-1576.13867347,0.00020831,4]
[370055967,1751868651528,-460.0,0.00020854,2]
[370055968,1751868651538,-651.31,0.00020854,2]
[370055969,1751868651548,-460.0,0.00020855,2]
[370055970,1751868651557,-460.0,0.00020855,2]
[370055971,1751868651567,-1103.47,0.00020855,2]
[370055972,1751868651577,-1158.81,0.00020858,2]
[370055973,1751868651586,-460.0,0.00020858,2]
[370055974,1751868651596,-460.0,0.00020858,2]
[370055975,1751868651605,-6000.0,0.00020941,2]
[370055976,1751868651615,-3000.0,0.00021,2]
[370055977,1751868651624,-3000.0,0.0002101,2]
[370055978,1751868651633,-321.70562953,0.00021012,2]
[370055979,1751868651643,-3000.0,0.0002102,2]
[370055980,1751868651652,-3000.0,0.0002103,2]
[370055981,1751868651662,-3000.0,0.0002104,2]
[370055982,1751868651671,-3000.0,0.0002105,2]
[370055983,1751868651681,-3000.0,0.0002106,2]
[370055984,1751868651690,-3000.0,0.0002107,2]
[370055985,1751868651699,-1576.13867347,0.00021072,4]
[370055986,1751868651709,-3000.0,0.0002108,2]
[370055987,1751868651718,-54435.49597737,0.00021086,2]
[370055988,1751868651727,-3000.0,0.0002109,2]
[370055989,1751868651736,-3000.0,0.000211,2]
[370055990,1751868651745,-3000.0,0.0002111,2]
[370055991,1751868651755,-3000.0,0.0002112,2]
[370055992,1751868651765,-460.0,0.00021128,2]
[370055993,1751868651774,-651.31,0.00021128,2]
[370055994,1751868651783,-460.0,0.00021129,2]
[370055995,1751868651793,-460.0,0.00021129,2]
[370055996,1751868651803,-1103.47,0.00021129,2]
[370055997,1751868651812,-3000.0,0.0002113,2]
[370055998,1751868651821,-1158.81,0.00021132,2]
[370055999,1751868651830,-460.0,0.00021132,2]
[370056000,1751868651839,-460.0,0.00021132,2]
[370056001,1751868651848,-3000.0,0.0002114,2]
[370056002,1751868651857,-3000.0,0.0002115,2]
[370056003,1751868651866,-3000.0,0.0002116,2]
[370056004,1751868651876,-3000.0,0.0002117,2]
[370056005,1751868651885,-3000.0,0.0002118,2]
[370056006,1751868651894,-3000.0,0.0002119,2]
[370056007,1751868651904,-3000.0,0.000212,2]
[370056008,1751868651914,-3000.0,0.0002121,2]
[370056009,1751868651924,-3000.0,0.0002122,2]
[370056010,1751868651935,-3000.0,0.0002123,2]
[370056011,1751868651946,-3000.0,0.0002124,2]
[370056012,1751868651955,-3000.0,0.0002125,2]
[370056013,1751868651965,-3000.0,0.0002126,2]
[370056014,1751868651975,-3000.0,0.0002127,2]
[370056015,1751868651985,-3000.0,0.0002128,2]
[370056016,1751868651996,-3000.0,0.0002129,2]
[370056017,1751868652005,-3000.0,0.000213,2]
[370056018,1751868652015,-3000.0,0.0002131,2]
[370056019,1751868652024,-1576.13867347,0.00021314,5]
[370056020,1751868652035,-3000.0,0.0002132,2]
[370056021,1751868652045,-3000.0,0.0002133,2]
[370056022,1751868652054,-3000.0,0.0002134,2]
[370056023,1751868652064,-3000.0,0.0002135,2]
[370056024,1751868652074,-3000.0,0.0002136,2]
[370056025,1751868652083,-1200.0,0.00021363,2]
[370056026,1751868652093,-3000.0,0.0002137,2]
[370056027,1751868652104,-4598.630156,0.0002138,2]
[370056028,1751868652113,-607.18,0.00021402,2]
[370056029,1751868652123,-651.31,0.00021402,2]
[370056030,1751868652132,-460.0,0.00021403,2]
[370056031,1751868652141,-460.0,0.00021403,2]
[370056032,1751868652151,-1103.47,0.00021403,2]
[370056033,1751868652160,-1158.81,0.00021406,2]
[370056034,1751868652170,-460.0,0.00021406,2]
[370056035,1751868652180,-460.0,0.00021406,2]
[370056036,1751868652190,-500.0,0.00021527,2]
[370056037,1751868652200,-1576.13867347,0.00021555,5]
[370056038,1751868652210,-150.0,0.00021594,2]
[370056039,1751868652220,-651.31,0.00021676,2]
[370056040,1751868652230,-460.0,0.00021677,2]
[370056041,1751868652240,-460.0,0.00021677,2]
[370056042,1751868652249,-1103.47,0.00021677,2]
[370056043,1751868652258,-1158.81,0.0002168,2]
[370056044,1751868652267,-460.0,0.0002168,2]
[370056045,1751868652277,-460.0,0.0002168,2]
[370056046,1751868652287,-3022.26262583,0.00021699,2]
[370056047,1751868652297,-806.76760504,0.00021717,2]
[370056048,1751868652306,-1576.13867347,0.00021797,6]
[370056049,1751868652316,-223.72,0.0002182,2]
[370056050,1751868652326,-1800.0,0.00021911,2]
[370056051,1751868652336,-500.0,0.00021918,2]
[370056052,1751868652346,-200.87475837,0.00021918,2]
[370056053,1751868652356,-500.0,0.00021918,2]
[370056054,1751868652366,-651.31,0.0002195,2]
[370056055,1751868652376,-460.0,0.00021951,2]
[370056056,1751868652385,-591.4468275,0.00021951,2]
[370056057,1751868652394,-1103.47,0.00021951,2]
[370056058,1751868652404,-1158.81,0.00021954,2]
[370056059,1751868652413,-460.0,0.00021954,2]
[370056060,1751868652423,-460.0,0.00021954,2]
[370056061,1751868652533,-150.0,0.00021973,2]
[370056062,1751868652543,-3600.55,0.00022,7]
[370056063,1751868652555,-52703.04,0.00022,7]
[370056064,1751868652564,-848.27993403,0.00022,7]
[370056065,1751868652574,-214.06929976,0.00022,7]
[370056066,1751868652583,-133768.55,0.00022,2]
[370056067,1751868652592,-524.98484073,0.00022,7]
[370056068,1751868652603,-36049.16079695,0.00022,2]
[370056069,1751868652612,-1576.13867347,0.00022038,6]
[370056070,1751868652622,-1299.83,0.000221,7]
[370056071,1751868652633,-823.0,0.00022173,2]
[370056072,1751868652642,-651.31,0.00022224,2]
[370056073,1751868652652,-460.0,0.00022225,2]
[370056074,1751868652661,-1103.47,0.00022225,2]
[370056075,1751868652670,-1158.81,0.00022228,2]
[370056076,1751868652681,-460.0,0.00022228,2]
[370056077,1751868652691,-360.68158375,0.00022228,2]
[370056078,1751868652701,-1576.13867347,0.00022279,6]
[370056079,1751868652711,-2400.0,0.00022459,2]
[370056080,1751868652720,-651.31,0.00022498,2]